bitfinex/quotes_BTCUSD_20250206
["timestamp","ask_amount","ask_price","bid_price","bid_amount"]
[1738851473010,0.009,98310.0,98308.0,0.21617433]
[1738851473215,0.011,98310.0,98300.0,0.20907315]
[1738851473415,0.011,98310.0,98309.0,0.00709937]
[1738851473612,0.011,98310.0,98307.0,0.152582]
[1738851473804,0.009,98310.0,98309.0,0.00709937]
[1738851473997,0.009,98310.0,98301.0,0.10250365]
[1738851474199,0.009,98310.0,98309.0,0.00709937]
[1738851474446,0.00162042,98310.0,98301.0,0.00991713]
[1738851474646,0.00162042,98310.0,98309.0,0.00709937]
[1738851474854,0.00162042,98310.0,98300.0,0.20907315]
[1738851475060,0.00162042,98310.0,98290.0,0.20907315]
[1738851475061,0.35602,98309.0,98290.0,0.20907315]
[1738851475271,0.15419842,98310.0,98290.0,0.3115768]
[1738851475485,0.00162042,98307.0,98290.0,0.3115768]
[1738851475635,0.00162042,98302.0,98290.0,0.20907315]
[1738851476042,0.00162042,98302.0,98291.0,0.01893424]
[1738851476889,0.00162042,98302.0,98292.0,0.01893424]
[1738851477711,0.00162042,98302.0,98293.0,0.01893424]
[1738851478617,0.004,98302.0,98294.0,0.0010173]
[1738851478815,0.004,98302.0,98301.0,0.152592]
[1738851479160,0.0002245,98321.0,98301.0,0.152592]
[1738851479161,0.0002245,98321.0,98305.0,0.00837958]
[1738851479366,0.0002245,98321.0,98311.0,0.20907315]
[1738851479580,0.08096469,98320.0,98311.0,0.20907315]
[1738851479795,0.00184492,98321.0,98306.0,0.00710719]
[1738851479995,0.15419342,98313.0,98312.0,0.00709633]
[1738851480201,0.00162042,98313.0,98300.0,0.20907315]
[1738851480449,0.0022245,98321.0,98301.0,0.10352082]
[1738851480671,0.0022245,98321.0,98311.0,0.20907315]
[1738851481083,0.0022245,98321.0,98312.0,0.00704285]
[1738851481084,0.0002245,98321.0,98312.0,0.00704285]
[1738851481294,0.0002245,98321.0,98316.0,0.0827]
[1738851481501,0.0002245,98321.0,98319.0,0.152564]
[1738851481717,0.0092245,98321.0,98320.0,0.10250365]
[1738851481939,0.0002245,98321.0,98320.0,0.00703429]
[1738851482357,0.0082245,98321.0,98320.0,0.00703429]
[1738851482558,0.0002245,98321.0,98320.0,0.04929901]
[1738851482968,0.0032245,98321.0,98320.0,0.05631634]
[1738851483370,0.0012245,98321.0,98320.0,0.05631634]
[1738851483992,0.0012245,98321.0,98320.0,0.00701733]
[1738851484200,0.0012245,98321.0,98320.0,0.15958033]
[1738851484619,0.0012245,98321.0,98320.0,0.00701733]
[1738851484819,0.0002245,98321.0,98314.0,0.01034246]
[1738851484978,0.0042245,98321.0,98320.0,0.15958033]
[1738851485180,0.0042245,98321.0,98320.0,0.25506665]
[1738851485391,0.0002245,98321.0,98320.0,0.26208398]
[1738851485590,0.0002245,98321.0,98320.0,0.00701733]
[1738851486115,0.0002245,98321.0,98311.0,0.21948422]
[1738851486313,0.0022245,98321.0,98320.0,0.00701733]
[1738851486516,0.0022245,98321.0,98311.0,0.00013871]
[1738851486517,0.00384492,98321.0,98311.0,0.00013871]
[1738851486847,0.00384492,98321.0,98320.0,0.152563]
[1738851486848,0.0022245,98321.0,98320.0,0.152563]
[1738851487186,0.0022245,98321.0,98320.0,0.26208398]
[1738851487392,0.0022245,98321.0,98320.0,0.15958033]
[1738851487630,0.0022245,98321.0,98320.0,0.00701733]
[1738851487831,0.0002245,98321.0,98320.0,0.152563]
[1738851488051,0.0032245,98321.0,98320.0,0.15958618]
[1738851488287,0.0002245,98321.0,98320.0,0.15958618]
[1738851488482,0.0002245,98321.0,98320.0,0.00702318]
[1738851488650,0.0022245,98321.0,98320.0,0.00702318]
[1738851488862,0.0002245,98321.0,98311.0,0.00013871]
[1738851489067,0.00184492,98321.0,98311.0,0.00013871]
[1738851489267,0.0002245,98321.0,98312.0,0.00703134]
[1738851489675,0.152573,98314.0,98312.0,0.00703134]
[1738851490213,0.00162042,98315.0,98311.0,0.00013871]
[1738851490524,0.152575,98312.0,98311.0,0.00013871]
[1738851490734,0.20343,98314.0,98311.0,0.00013871]
[1738851491103,0.00162042,98315.0,98311.0,0.00013871]
[1738851491304,0.152575,98312.0,98311.0,0.00013871]
[1738851491504,0.15419542,98312.0,98311.0,0.00013871]
[1738851491710,0.19969542,98312.0,98311.0,0.00013871]
[1738851492702,0.20769542,98312.0,98311.0,0.00013871]
[1738851493906,0.21169542,98312.0,98311.0,0.00013871]
[1738851494112,0.20369542,98312.0,98311.0,0.00013871]
[1738851494316,0.31519907,98312.0,98311.0,0.00013871]
[1738851494524,0.52159907,98312.0,98311.0,0.00013871]
[1738851494727,0.51259907,98312.0,98311.0,0.00013871]
[1738851494941,0.53634179,98312.0,98311.0,0.00013871]
[1738851495113,0.75109907,98312.0,98311.0,0.00013871]
[1738851495350,0.74309907,98312.0,98311.0,0.00013871]
[1738851495779,0.75209907,98312.0,98311.0,0.00013871]
[1738851495992,0.43019542,98312.0,98311.0,0.00013871]
[1738851496204,0.04712042,98312.0,98311.0,0.00013871]
[1738851496617,0.05112042,98312.0,98311.0,0.00013871]
[1738851497077,0.04712042,98312.0,98311.0,0.00013871]
[1738851497283,0.05912042,98312.0,98311.0,0.00013871]
[1738851497466,0.05012042,98312.0,98311.0,0.00013871]
[1738851497822,0.05912042,98312.0,98311.0,0.00013871]
[1738851498027,0.49082141,98312.0,98311.0,0.00013871]
[1738851498208,0.39962407,98312.0,98311.0,0.00013871]
[1738851498416,0.40862407,98312.0,98311.0,0.00013871]
[1738851498697,0.49962407,98312.0,98311.0,0.00013871]
[1738851498905,0.39962407,98312.0,98311.0,0.00013871]
[1738851499310,0.39800365,98312.0,98311.0,0.00013871]
[1738851499494,0.41162407,98312.0,98311.0,0.00013871]
[1738851499853,0.40862407,98312.0,98311.0,0.00013871]
[1738851500057,0.40700365,98312.0,98311.0,0.00013871]
[1738851500264,0.41162407,98312.0,98311.0,0.00013871]
[1738851500981,0.39962407,98312.0,98311.0,0.00013871]
[1738851501184,0.41262407,98312.0,98311.0,0.00013871]
[1738851501344,0.40362407,98312.0,98311.0,0.00013871]
[1738851501540,0.48422908,98312.0,98311.0,0.00013871]
[1738851501757,0.41262407,98312.0,98311.0,0.00013871]
[1738851501968,0.40362407,98312.0,98311.0,0.00013871]
[1738851502168,0.05112042,98312.0,98311.0,0.00013871]
[1738851502380,0.04712042,98312.0,98311.0,0.00722196]
[1738851502584,0.05112042,98312.0,98311.0,0.00722196]
[1738851502784,0.06012042,98312.0,98311.0,0.00722196]
[1738851503011,0.06012042,98312.0,98311.0,0.00013871]
[1738851503220,0.009,98312.0,98311.0,0.00013871]
[1738851503436,0.012,98312.0,98311.0,0.00722196]
[1738851504041,0.09336844,98312.0,98311.0,0.00722196]
[1738851504292,0.09936844,98312.0,98311.0,0.00722196]
[1738851504701,0.09036844,98312.0,98311.0,0.00722196]
[1738851505138,0.09936844,98312.0,98311.0,0.00722196]
[1738851505385,0.09036844,98312.0,98311.0,0.11074272]
[1738851505636,0.09336844,98312.0,98311.0,0.2691223]
[1738851505926,0.10036844,98312.0,98311.0,0.26810519]
[1738851506163,0.10036844,98312.0,98311.0,0.10972561]
[1738851506164,0.09736844,98312.0,98311.0,0.10972561]
[1738851506410,0.09736844,98312.0,98311.0,0.00722196]
[1738851506613,0.008,98312.0,98311.0,0.00722196]
[1738851507079,0.00162042,98316.0,98312.0,0.203433]
[1738851507328,0.00162042,98316.0,98313.0,0.00701297]
[1738851507570,0.00162042,98315.0,98311.0,0.00213871]
[1738851507808,0.00162042,98315.0,98312.0,0.00701478]
[1738851508620,0.21202042,98313.0,98312.0,0.00701478]
[1738851508827,0.00162042,98313.0,98312.0,0.15958978]
[1738851509046,0.00162042,98313.0,98311.0,0.00013871]
[1738851509253,0.00162042,98313.0,98312.0,0.00701478]
[1738851509459,0.00162042,98313.0,98311.0,0.00013871]
[1738851510306,0.00162042,98313.0,98312.0,0.00704366]
[1738851510536,0.00262042,98313.0,98312.0,0.00704366]
[1738851511196,0.10912407,98313.0,98312.0,0.00704366]
[1738851511402,0.23222407,98313.0,98312.0,0.00704366]
[1738851511603,0.00162042,98312.0,98311.0,0.00013871]
[1738851511822,0.25669907,98312.0,98311.0,0.00013871]
[1738851512378,0.25692357,98312.0,98311.0,0.00013871]
[1738851512982,0.40692357,98312.0,98311.0,0.00013871]
[1738851514038,0.41492357,98312.0,98311.0,0.00013871]
[1738851514261,0.40892357,98312.0,98311.0,0.00013871]
[1738851514542,0.41792357,98312.0,98311.0,0.00013871]
[1738851514786,0.45068065,98312.0,98311.0,0.00013871]
[1738851515113,0.41792357,98312.0,98311.0,0.00013871]
[1738851515960,0.44092357,98312.0,98311.0,0.00013871]
[1738851516149,0.49062357,98312.0,98311.0,0.00013871]
[1738851516349,0.48862357,98312.0,98311.0,0.00013871]
[1738851516551,0.00162042,98277.0,98274.0,0.152633]
[1738851516753,0.00162042,98277.0,98275.0,0.152632]
[1738851516952,0.00162042,98277.0,98276.0,0.00713472]
[1738851517376,0.00162042,98277.0,98273.0,0.0001069]
[1738851517578,0.00162042,98277.0,98276.0,0.00713472]
[1738851517788,0.00162042,98275.0,98273.0,0.0001069]
[1738851517992,0.00013858,98277.0,98276.0,0.152631]
[1738851518423,0.00113858,98277.0,98276.0,0.152631]
[1738851518584,0.00013858,98277.0,98276.0,0.152631]
[1738851519828,0.00162042,98274.0,98273.0,0.0001069]
[1738851519942,0.00162042,98274.0,98273.0,0.1527429]
[1738851520415,0.00013858,98277.0,98276.0,0.152631]
[1738851520615,0.007759,98277.0,98276.0,0.152631]
[1738851520922,0.001759,98277.0,98273.0,0.0001069]
[1738851521138,0.00462042,98274.0,98273.0,0.0001069]
[1738851521635,0.00162042,98274.0,98273.0,0.0001069]
[1738851523226,0.00462042,98274.0,98273.0,0.0001069]
[1738851523437,0.15725442,98274.0,98273.0,0.0001069]
[1738851523615,0.15425442,98274.0,98273.0,0.0001069]
[1738851523814,0.15725442,98274.0,98273.0,0.0001069]
[1738851524055,0.15425442,98274.0,98273.0,0.0001069]
[1738851524608,0.15725442,98274.0,98273.0,0.0001069]
[1738851524822,0.15425442,98274.0,98273.0,0.0001069]
[1738851525035,0.20285442,98274.0,98273.0,0.0001069]
[1738851525446,0.05022042,98274.0,98273.0,0.0001069]
[1738851526116,0.05322042,98274.0,98273.0,0.0001069]
[1738851526321,0.05022042,98274.0,98273.0,0.00732181]
[1738851526510,0.05022042,98274.0,98273.0,0.1527429]
[1738851526715,0.05322042,98274.0,98273.0,0.15995781]
[1738851527114,0.05322042,98274.0,98273.0,0.00732181]
[1738851527433,0.05322042,98274.0,98273.0,0.15995781]
[1738851528172,0.20585442,98274.0,98273.0,0.00732181]
[1738851528554,0.20585442,98274.0,98273.0,0.0001069]
[1738851529179,0.05322042,98274.0,98273.0,0.0001069]
[1738851529386,0.05022042,98274.0,98273.0,0.0001069]
[1738851529592,0.05022042,98274.0,98273.0,0.1527429]
[1738851529807,0.05322042,98274.0,98273.0,0.1527429]
[1738851530010,0.00162042,98274.0,98273.0,0.1599762]
[1738851530222,0.00013858,98277.0,98276.0,0.152631]
[1738851530629,0.00013858,98277.0,98276.0,0.15990886]
[1738851531237,0.00013858,98277.0,98276.0,0.26342998]
[1738851531448,0.00013858,98277.0,98276.0,0.26241251]
[1738851531865,0.00013858,98277.0,98276.0,0.27264828]
[1738851532655,0.00013858,98277.0,98276.0,0.42264828]
[1738851533299,0.00113858,98277.0,98276.0,0.42264828]
[1738851533477,0.00013858,98277.0,98276.0,0.42264828]
[1738851533993,0.00113858,98277.0,98276.0,0.17014463]
[1738851535185,0.00113858,98277.0,98276.0,0.1711621]
[1738851535549,0.00113858,98277.0,98276.0,0.17014463]
[1738851535704,0.00013858,98277.0,98276.0,0.17014463]
[1738851535883,0.00213858,98277.0,98276.0,0.17014463]
[1738851536203,0.00013858,98277.0,98276.0,0.17014463]
[1738851539104,0.10426265,98277.0,98276.0,0.00727786]
[1738851539356,0.29494791,98277.0,98276.0,0.00727786]
[1738851539559,0.152634,98274.0,98273.0,0.0001069]
[1738851539914,0.25513765,98274.0,98273.0,0.0001069]
[1738851540467,0.25675807,98274.0,98273.0,0.0001069]
[1738851540838,0.26775807,98274.0,98273.0,0.0001069]
[1738851541263,0.26575807,98274.0,98273.0,0.0001069]
[1738851541440,0.01362042,98274.0,98273.0,0.0001069]
[1738851542080,0.003,98274.0,98273.0,0.0001069]
[1738851542284,0.012,98274.0,98273.0,0.0001069]
[1738851542742,0.00013858,98277.0,98273.0,0.00651683]
[1738851542957,0.00013858,98277.0,98276.0,0.152631]
[1738851543170,0.003,98274.0,98273.0,0.01644757]
[1738851543362,0.003,98274.0,98273.0,0.01003764]
[1738851543595,0.005,98274.0,98273.0,0.0001069]
[1738851543811,0.00013858,98277.0,98273.0,0.0001069]
[1738851544016,0.00113858,98277.0,98274.0,0.152634]
[1738851544434,0.00113858,98277.0,98273.0,0.01912884]
[1738851544637,0.00113858,98277.0,98273.0,0.17176384]
[1738851544839,0.00013858,98277.0,98274.0,0.152633]
[1738851545041,0.00013858,98277.0,98273.0,0.02915712]
[1738851545249,0.00613858,98277.0,98274.0,0.22253394]
[1738851545387,0.00013858,98277.0,98274.0,0.01902194]
[1738851545960,0.152631,98276.0,98274.0,0.01902194]
[1738851546165,0.00162042,98275.0,98274.0,0.01902194]
[1738851546585,0.00162042,98275.0,98273.0,0.0001069]
[1738851547418,0.15425342,98275.0,98273.0,0.0001069]
[1738851547835,0.00162042,98274.0,98273.0,0.0001069]
[1738851548011,0.05052042,98274.0,98273.0,0.0001069]
[1738851548211,0.15302407,98274.0,98273.0,0.0001069]
[1738851549194,0.15902407,98274.0,98273.0,0.0001069]
[1738851550354,0.16002407,98274.0,98273.0,0.0001069]
[1738851553361,0.00862042,98274.0,98273.0,0.0001069]
[1738851553559,0.007,98274.0,98273.0,0.1527429]
[1738851553988,0.007,98274.0,98273.0,0.00653549]
[1738851554702,0.00862042,98274.0,98273.0,0.0001069]
[1738851554917,0.007,98274.0,98273.0,0.0001069]
[1738851555178,0.00862042,98274.0,98273.0,0.0001069]
[1738851555973,0.007,98274.0,98273.0,0.0001069]
[1738851557346,0.007,98274.0,98273.0,0.1527429]
[1738851557566,0.007,98274.0,98273.0,0.15811929]
[1738851558018,0.007,98274.0,98273.0,0.1591368]
[1738851558242,0.007,98274.0,98273.0,0.15811929]
[1738851558902,0.006,98274.0,98273.0,0.15811929]
[1738851559165,0.00013858,98277.0,98276.0,0.152631]
[1738851559386,0.00013858,98277.0,98276.0,0.15800196]
[1738851559624,0.00013858,98277.0,98276.0,0.00537096]
[1738851559886,0.00013858,98277.0,98273.0,0.0001069]
[1738851559887,0.00013858,98277.0,98273.0,0.0102874]
[1738851560109,0.00013858,98277.0,98276.0,0.00537096]
[1738851560378,0.00013858,98277.0,98273.0,0.0001069]
[1738851560379,0.00013858,98277.0,98274.0,0.152634]
[1738851560629,0.00313858,98277.0,98275.0,0.00537277]
[1738851560867,0.00113858,98277.0,98273.0,0.0001069]
[1738851561163,0.00113858,98277.0,98276.0,0.00537096]
[1738851561609,0.00113858,98277.0,98273.0,0.1527409]
[1738851561862,0.00113858,98277.0,98274.0,0.00537458]
[1738851562079,0.00013858,98277.0,98274.0,0.00537458]
[1738851562307,0.00513858,98277.0,98275.0,0.152632]
[1738851562505,0.00613858,98277.0,98275.0,0.152632]
[1738851562698,0.00113858,98277.0,98276.0,0.00535037]
[1738851562926,0.00613858,98277.0,98276.0,0.00535037]
[1738851563125,0.00613858,98277.0,98276.0,0.152631]
[1738851563332,0.00113858,98277.0,98276.0,0.00535037]
[1738851563582,0.00613858,98277.0,98276.0,0.00535037]
[1738851563768,0.00013858,98277.0,98276.0,0.152631]
[1738851563980,0.00113858,98277.0,98276.0,0.15798137]
[1738851564187,0.00413858,98277.0,98276.0,0.15798137]
[1738851564336,0.00413858,98277.0,98276.0,0.17700428]
[1738851564750,0.00413858,98277.0,98276.0,0.02437328]
[1738851564946,0.00413858,98277.0,98276.0,0.17700428]
[1738851565148,0.00413858,98277.0,98276.0,0.27950793]
[1738851565410,0.00313858,98277.0,98276.0,0.27950793]
[1738851565559,0.00013858,98277.0,98276.0,0.27950793]
[1738851565765,0.00613858,98277.0,98276.0,0.27950793]
[1738851565949,0.00113858,98277.0,98276.0,0.27950793]
[1738851566159,0.00013858,98277.0,98276.0,0.27950793]
[1738851566358,0.00113858,98277.0,98276.0,0.27950793]
[1738851566638,0.00013858,98277.0,98276.0,0.30994486]
[1738851567110,0.00113858,98277.0,98276.0,0.30994486]
[1738851568803,0.00113858,98277.0,98276.0,0.20744121]
[1738851570544,0.00113858,98277.0,98276.0,0.05481021]
[1738851570948,0.00113858,98277.0,98276.0,0.20744121]
[1738851571849,0.00013858,98277.0,98276.0,0.20744121]
[1738851572064,0.00513858,98277.0,98276.0,0.15798137]
[1738851572313,0.00513858,98277.0,98276.0,0.00535037]
[1738851572518,0.00013858,98277.0,98276.0,0.00535037]
[1738851572729,0.00013858,98277.0,98273.0,0.0001069]
[1738851572730,0.00313858,98277.0,98273.0,0.0001069]
[1738851572950,0.00313858,98277.0,98276.0,0.00563037]
[1738851573177,0.00313858,98277.0,98273.0,0.0001069]
[1738851573178,0.00013858,98277.0,98273.0,0.0001069]
[1738851573401,0.00513858,98277.0,98273.0,0.0001069]
[1738851573627,0.00113858,98277.0,98274.0,0.00563399]
[1738851573962,0.00013858,98277.0,98274.0,0.00563399]
[1738851574160,0.00113858,98277.0,98274.0,0.00563399]
[1738851574852,0.00613858,98277.0,98274.0,0.00563399]
[1738851575048,0.00113858,98277.0,98274.0,0.00563399]
[1738851575324,0.00113858,98277.0,98276.0,0.152631]
[1738851575442,0.00613858,98277.0,98276.0,0.152631]
[1738851575649,0.00613858,98277.0,98276.0,0.15825248]
[1738851575911,0.00513858,98277.0,98276.0,0.15825248]
[1738851576114,0.00613858,98277.0,98276.0,0.15825248]
[1738851576276,0.00113858,98277.0,98276.0,0.17829437]
[1738851576770,0.00513858,98277.0,98276.0,0.17829437]
[1738851577192,0.00513858,98277.0,98276.0,0.02464593]
[1738851577395,0.00513858,98277.0,98276.0,0.17829434]
[1738851577755,0.00513858,98277.0,98276.0,0.02464593]
[1738851578140,0.00013858,98277.0,98276.0,0.02464593]
[1738851578362,0.00213858,98277.0,98276.0,0.02464593]
[1738851578594,0.00213858,98277.0,98276.0,0.01902445]
[1738851578765,0.00013858,98277.0,98276.0,0.02465325]
[1738851579105,0.00213858,98277.0,98276.0,0.01902445]
[1738851579440,0.00213858,98277.0,98276.0,0.02465325]
[1738851580570,0.00213858,98277.0,98276.0,0.0056288]
[1738851580891,0.00213858,98277.0,98273.0,0.0001069]
[1738851581325,0.00213858,98277.0,98274.0,0.00563243]
[1738851581948,0.00013858,98277.0,98274.0,0.00563243]
[1738851582160,0.00213858,98277.0,98274.0,0.00563243]
[1738851583090,0.00013858,98277.0,98274.0,0.00563243]
[1738851583298,0.00213858,98277.0,98274.0,0.00563243]
[1738851583991,0.00213858,98277.0,98273.0,0.0001069]
[1738851584283,0.00213858,98277.0,98274.0,0.00563243]
[1738851584701,0.00013858,98277.0,98273.0,0.0001069]
[1738851585066,0.00213858,98277.0,98274.0,0.00563243]
[1738851585251,0.0465,98275.0,98274.0,0.00563243]
[1738851585427,0.199133,98275.0,98273.0,0.0001069]
[1738851585627,0.0465,98275.0,98274.0,0.00563243]
[1738851585967,0.0465,98275.0,98273.0,0.0001069]
[1738851586214,0.0465,98275.0,98274.0,0.00563243]
[1738851586436,0.0465,98275.0,98273.0,0.0001069]
[1738851586642,0.0465,98275.0,98274.0,0.0001068]
[1738851586798,0.0475,98275.0,98274.0,0.0001068]
[1738851587011,0.001,98275.0,98274.0,0.0001068]
[1738851587180,0.00013858,98277.0,98274.0,0.15837462]
[1738851587401,0.00013858,98277.0,98274.0,0.15939208]
[1738851587608,0.001,98275.0,98274.0,0.15939208]
[1738851588020,0.006,98275.0,98274.0,0.15939208]
[1738851588223,0.001,98275.0,98274.0,0.15939208]
[1738851588670,0.001,98275.0,98274.0,0.00574162]
[1738851588904,0.001,98275.0,98274.0,0.15837562]
[1738851589047,0.00013858,98277.0,98276.0,0.152631]
[1738851589399,0.00013858,98277.0,98276.0,0.1582622]
[1738851590037,0.00013858,98277.0,98276.0,0.26076585]
[1738851590506,0.00013858,98277.0,98276.0,0.12719678]
[1738851591469,0.00013858,98277.0,98276.0,0.27982778]
[1738851591710,0.00213858,98277.0,98276.0,0.27982778]
[1738851592099,0.00313858,98277.0,98276.0,0.27982778]
[1738851592301,0.00313858,98277.0,98276.0,0.12719678]
[1738851592523,0.00313858,98277.0,98276.0,0.27982778]
[1738851592728,0.00313858,98277.0,98276.0,0.02469313]
[1738851593440,0.00313858,98277.0,98276.0,0.0056312]
[1738851593603,0.00313858,98277.0,98274.0,0.0001068]
[1738851593827,0.00313858,98277.0,98275.0,0.00562425]
[1738851594248,0.00313858,98277.0,98276.0,0.152631]
[1738851594473,0.00013858,98277.0,98276.0,0.15825344]
[1738851594817,0.00013858,98277.0,98276.0,0.15927087]
[1738851594963,0.00013858,98277.0,98276.0,0.15825344]
[1738851595349,0.00113858,98277.0,98276.0,0.00562244]
[1738851595527,0.00013858,98277.0,98276.0,0.00562244]
[1738851595668,0.00013858,98277.0,98274.0,0.0001068]
[1738851595871,0.00113858,98277.0,98276.0,0.02468288]
[1738851596076,0.00113858,98277.0,98276.0,0.01906044]
[1738851596406,0.00113858,98277.0,98276.0,0.02468288]
[1738851596809,0.048859,98277.0,98276.0,0.02468288]
[1738851597158,0.048859,98277.0,98276.0,0.01906044]
[1738851597296,0.201488,98277.0,98276.0,0.01906044]
[1738851597499,0.048859,98277.0,98274.0,0.0001068]
[1738851597718,0.15425242,98275.0,98274.0,0.0001068]
[1738851599610,0.00162042,98275.0,98274.0,0.0001068]
[1738851599801,0.00762042,98275.0,98274.0,0.0001068]
[1738851600016,0.16025242,98275.0,98274.0,0.0001068]
[1738851600415,0.00862042,98275.0,98274.0,0.0001068]
[1738851600991,0.16125242,98275.0,98274.0,0.0001068]
[1738851601845,0.00862042,98275.0,98274.0,0.0001068]
[1738851602458,0.00162042,98275.0,98274.0,0.01916095]
[1738851602657,0.04623858,98277.0,98274.0,0.01916095]
[1738851602658,0.00013858,98277.0,98274.0,0.01916095]
[1738851602860,0.007,98275.0,98274.0,0.02907519]
[1738851603429,0.006,98275.0,98274.0,0.02907519]
[1738851603623,0.007,98275.0,98274.0,0.18170919]
[1738851603870,0.007,98275.0,98274.0,0.28523028]
[1738851604073,0.007,98275.0,98274.0,0.43421284]
[1738851604274,0.001,98275.0,98274.0,0.43421284]
[1738851604653,0.007,98275.0,98274.0,0.43421284]
[1738851604877,0.001,98275.0,98274.0,0.43421284]
[1738851605283,0.00013858,98277.0,98276.0,0.152631]
[1738851605511,0.00013858,98277.0,98276.0,0.40615202]
[1738851605713,0.00013858,98277.0,98276.0,0.40513465]
[1738851607023,0.00013858,98277.0,98276.0,0.25250365]
[1738851607414,0.00013858,98277.0,98276.0,0.4241888]
[1738851607625,0.00113858,98277.0,98276.0,0.4241888]
[1738851608019,0.00013858,98277.0,98276.0,0.4241888]
[1738851608686,0.00013858,98277.0,98276.0,0.40513465]
[1738851609580,0.00162042,98310.0,98306.0,0.152584]
[1738851609822,0.08110394,98307.0,98303.0,0.152588]
[1738851609971,0.00013925,98307.0,98305.0,0.152585]
[1738851610379,0.00013925,98307.0,98305.0,0.152586]
[1738851610559,0.00013925,98307.0,98297.0,0.0010172]
[1738851610764,0.00013925,98307.0,98295.0,0.13920327]
[1738851610990,0.15434267,98307.0,98306.0,0.01901923]
[1738851611330,0.00175967,98307.0,98306.0,0.01901923]
[1738851611646,0.00413925,98307.0,98306.0,0.02365561]
[1738851611868,0.00013925,98307.0,98306.0,0.02365561]
[1738851612103,0.00013925,98307.0,98306.0,0.00463638]
[1738851612296,0.00613925,98307.0,98306.0,0.00463638]
[1738851612565,0.00613925,98307.0,98302.0,0.00991807]
[1738851612782,0.01213925,98307.0,98306.0,0.00463638]
[1738851612968,0.01213925,98307.0,98305.0,0.152585]
[1738851613134,0.01213925,98307.0,98306.0,0.00463638]
[1738851613333,0.01313925,98307.0,98306.0,0.00463638]
[1738851613748,0.01213925,98307.0,98306.0,0.00463638]
[1738851613972,0.00613925,98307.0,98306.0,0.00463638]
[1738851614147,0.00113925,98307.0,98306.0,0.00463638]
[1738851614348,0.00613925,98307.0,98306.0,0.00463638]
[1738851614577,0.00113925,98307.0,98306.0,0.02364271]
[1738851614800,0.00113925,98307.0,98306.0,0.02465983]
[1738851614999,0.00113925,98307.0,98306.0,0.02364271]
[1738851615000,0.00513925,98307.0,98306.0,0.02364271]
[1738851615156,0.00113925,98307.0,98306.0,0.02364271]
[1738851615357,0.00013925,98307.0,98306.0,0.02364271]
[1738851615577,0.00413925,98307.0,98306.0,0.02364271]
[1738851616162,0.00413925,98307.0,98306.0,0.12716349]
[1738851616618,0.00413925,98307.0,98306.0,0.12946366]
[1738851617021,0.00413925,98307.0,98306.0,0.12844653]
[1738851617218,0.00013925,98307.0,98306.0,0.12844653]
[1738851617424,0.00013925,98307.0,98306.0,0.15986242]
[1738851618247,0.00013925,98307.0,98306.0,0.31244642]
[1738851618429,0.00013925,98307.0,98306.0,0.31142938]
[1738851619880,0.00013925,98307.0,98306.0,0.46142938]
[1738851620077,0.00010141,98312.0,98311.0,0.302577]
[1738851620280,0.00010141,98312.0,98311.0,0.42808065]
[1738851620452,0.0002245,98313.0,98312.0,0.175575]
[1738851620641,0.0002245,98313.0,98312.0,0.43386484]
[1738851621021,0.0002245,98313.0,98312.0,0.25727298]
[1738851621344,0.0002245,98313.0,98312.0,0.40984798]
[1738851622757,0.0002245,98313.0,98312.0,0.41184798]
[1738851623184,0.0002245,98313.0,98312.0,0.52468879]
[1738851623385,0.0002245,98313.0,98312.0,0.53306837]
[1738851623608,0.0002245,98313.0,98312.0,0.52768879]
[1738851623811,0.0002245,98313.0,98312.0,0.57709397]
[1738851624255,0.08096469,98338.0,98320.0,0.302563]
[1738851624430,0.08096469,98338.0,98320.0,0.40506665]
[1738851624783,0.08096469,98338.0,98320.0,0.40981827]
[1738851624981,0.08096469,98338.0,98320.0,0.43002933]
[1738851625213,0.08096469,98338.0,98320.0,0.47943451]
[1738851625415,0.08096469,98338.0,98320.0,0.30866045]
[1738851625623,0.00162042,98333.0,98320.0,0.16066045]
[1738851625835,0.00162042,98331.0,98320.0,0.0581568]
[1738851626069,0.00162042,98340.0,98320.0,0.31424039]
[1738851626274,0.0492,98349.0,98320.0,0.46322345]
[1738851626275,0.00162042,98345.0,98320.0,0.46322345]
[1738851626483,0.00162042,98345.0,98320.0,0.41181827]
[1738851626805,0.00162042,98345.0,98320.0,0.41281827]
[1738851627002,0.0492,98349.0,98320.0,0.43381827]
[1738851627202,0.0492,98349.0,98348.0,0.152519]
[1738851627585,0.04933925,98349.0,98348.0,0.152519]
[1738851627761,0.00013925,98349.0,98348.0,0.15720236]
[1738851628530,0.00913925,98349.0,98348.0,0.15720236]
[1738851628945,0.00913925,98349.0,98348.0,0.25970601]
[1738851629147,0.00913925,98349.0,98348.0,0.41996801]
[1738851630239,0.00913925,98349.0,98348.0,0.46915154]
[1738851630376,0.00913925,98349.0,98348.0,0.47015154]
[1738851630552,0.00913925,98349.0,98348.0,0.47237821]
[1738851630756,0.01213925,98349.0,98348.0,0.47137821]
[1738851630989,0.00013925,98349.0,98348.0,0.47137821]
[1738851631185,0.00013925,98349.0,98348.0,0.47337821]
[1738851631394,0.00013925,98349.0,98348.0,0.47537821]
[1738851631854,0.00013925,98349.0,98348.0,0.47318213]
[1738851633459,0.00013925,98349.0,98348.0,0.44291534]
[1738851634932,0.01,98372.0,98371.0,0.152483]
[1738851635133,0.01046397,98372.0,98371.0,0.25498665]
[1738851635335,0.01046397,98372.0,98371.0,0.10719547]
[1738851635983,0.01046397,98372.0,98371.0,0.12611221]
[1738851636224,0.01046397,98372.0,98371.0,0.17609156]
[1738851636386,0.01046397,98372.0,98371.0,0.27961164]
[1738851636387,0.01146397,98372.0,98371.0,0.27961164]
[1738851636586,0.01146397,98372.0,98371.0,0.27859521]
[1738851636957,0.01346397,98372.0,98371.0,0.27859521]
[1738851637153,0.01346397,98372.0,98371.0,0.13614382]
[1738851637505,0.01146397,98372.0,98371.0,0.03364017]
[1738851637696,0.01046397,98372.0,98371.0,0.03364017]
[1738851637907,0.01046397,98372.0,98371.0,0.13714382]
[1738851638078,0.01246397,98372.0,98371.0,0.13714382]
[1738851638432,0.01046397,98372.0,98371.0,0.11822708]
[1738851638753,0.01146397,98372.0,98371.0,0.11822708]
[1738851639210,0.01046397,98372.0,98371.0,0.11722708]
[1738851639627,0.01068825,98372.0,98371.0,0.11722708]
[1738851640221,0.01068825,98372.0,98371.0,0.27071008]
[1738851640421,0.01068825,98372.0,98371.0,0.11822708]
[1738851640627,0.01068825,98372.0,98371.0,0.27071008]
[1738851640855,0.01068825,98372.0,98371.0,0.01472343]
[1738851641055,0.01068825,98372.0,98371.0,0.00469182]
[1738851641056,0.24319067,98372.0,98371.0,0.00469182]
[1738851641259,0.24719067,98372.0,98371.0,0.00469182]
[1738851641466,0.152494,98365.0,98352.0,0.152512]
[1738851641670,0.203311,98371.0,98354.0,0.15]
[1738851641881,0.00162042,98358.0,98353.0,0.00411476]
[1738851642082,0.00162042,98352.0,98351.0,0.00996985]
[1738851642487,0.00162042,98352.0,98350.0,0.152515]